Workbook

Sheet Лист1
A1: ФИО полностью в род падеже | B1: Адрес проживания | C1: Вид налога (выбрать из списка) | D1: Транспотрный | G1: Змельный | J1: Имущественный | M1: Итоговая залолженность руб | N1: Размер госпошлины рублей | O1: Проверка
D2: налог | E2: пеня | F2: Период взыскания | G2: налог | H2: пеня | I2: Период взыскания | J2: налог | K2: пеня | L2: Период взыскания
A3: Никитина Романа Викторовича | B3: город Южно-Сахалинск, ул. Ленина, 44,32 | C3: транспортный | D3: 10.99 | E3: 7.01 | F3: 2014 | M3: =IF(C3="транспортный",SUM(D3:E3),IF(C3="земельный",SUM(G3:H3),IF(C3="имущественный",SUM(J3:K3),IF(C3="транспортный-земельный",SUM(D3:E3)+SUM(G3:H3),IF(C3="транспортный-имущественный",SUM(D3:E3)+SUM(J3:K3),IF(C3="имущественный-земельный",SUM(J3:K3)+SUM(G3:H3),IF(C3="транспортный-земельный-имущественный",SUM(D3:E3)+SUM(J3:K3)+SUM(G3:H3),""))))))) -> 18 | N3: =IF(M3="","",IF(M3<=20000,(IF((M3*0.04)<400,400,M3*0.04)),IF(AND(M3>=20001,M3<=100000),800+((M3-20000)*0.03),IF(AND(M3>=100001,M3<=200000),3200+((M3-100000)*0.02),IF(AND(M3>=200001,M3<=1000000),5200+((M3-200000)*0.01),IF(M3>=1000000,13200+((M3-1000000)*0.005),"ошибка")))))) -> 400 | O3: =IF(AND(C3="транспортный",SUM(D3:E3)>0,SUM(G3:K3)<=0),"ok",IF(AND(C3="земельный",SUM(G3:H3)>0,SUM(D3:E3)<=0,SUM(J3:K3)<=0),"ok",IF(AND(C3="имущественный",SUM(J3:K3)>0,SUM(D3:H3)<=0),"ok",IF(AND(C3="транспортный-земельный",SUM(D3:H3)>0,SUM(J3:K3)<=0),"ok",IF(AND(C3="транспортный-имущественный",SUM(D3:E3),SUM(J3:K3)>0,SUM(G3:H3)<=0),"ok",IF(AND(C3="имущественный-земельный",SUM(G3:K3)>0,SUM(D3:E3)<=0),"ok",IF(AND(C3="транспортный-земельный-имущественный",SUM(D3:K3)>0),"ok",IF(C3="","","ошибка")))))))) -> ok
A4: Сидорова Ивана Васильевича | B4: город Южно-Сахалинск, ул. Ленина, 44,33 | C4: земельный | G4: 234.56 | H4: 12.86 | I4: 2010 | M4: =IF(C4="транспортный",SUM(D4:E4),IF(C4="земельный",SUM(G4:H4),IF(C4="имущественный",SUM(J4:K4),IF(C4="транспортный-земельный",SUM(D4:E4)+SUM(G4:H4),IF(C4="транспортный-имущественный",SUM(D4:E4)+SUM(J4:K4),IF(C4="имущественный-земельный",SUM(J4:K4)+SUM(G4:H4),IF(C4="транспортный-земельный-имущественный",SUM(D4:E4)+SUM(J4:K4)+SUM(G4:H4),""))))))) -> 247.42 | N4: =IF(M4="","",IF(M4<=20000,(IF((M4*0.04)<400,400,M4*0.04)),IF(AND(M4>=20001,M4<=100000),800+((M4-20000)*0.03),IF(AND(M4>=100001,M4<=200000),3200+((M4-100000)*0.02),IF(AND(M4>=200001,M4<=1000000),5200+((M4-200000)*0.01),IF(M4>=1000000,13200+((M4-1000000)*0.005),"ошибка")))))) -> 400 | O4: =IF(AND(C4="транспортный",SUM(D4:E4)>0,SUM(G4:K4)<=0),"ok",IF(AND(C4="земельный",SUM(G4:H4)>0,SUM(D4:E4)<=0,SUM(J4:K4)<=0),"ok",IF(AND(C4="имущественный",SUM(J4:K4)>0,SUM(D4:H4)<=0),"ok",IF(AND(C4="транспортный-земельный",SUM(D4:H4)>0,SUM(J4:K4)<=0),"ok",IF(AND(C4="транспортный-имущественный",SUM(D4:E4),SUM(J4:K4)>0,SUM(G4:H4)<=0),"ok",IF(AND(C4="имущественный-земельный",SUM(G4:K4)>0,SUM(D4:E4)<=0),"ok",IF(AND(C4="транспортный-земельный-имущественный",SUM(D4:K4)>0),"ok",IF(C4="","","ошибка")))))))) -> ok
A5: Петренко Ивана Васильевича | B5: город Корсаков, ул. Советская, 33,45 | C5: имущественный | J5: 4558.3 | K5: 425,5 | L5: 2014 | M5: 4558.3 | N5: 400 | O5: ok
A6: Иванова Михаила Юрьевича | B6: город Фрунзе | C6: транспортный-земельный | D6: 21000.55 | E6: 67 | F6: 2014 | G6: 67.01 | H6: 54.6 | I6: 2013 | M6: 21189.16 | N6: 835.6748 | O6: ok
A7: Носкова Романа Романовича | B7: город Фрунзе | C7: транспортный-имущественный | D7: 23154.99 | E7: 5.25 | F7: 2010 | J7: 56.79 | K7: 65,58 | L7: 2014 | M7: 23217.03 | N7: 896.5109 | O7: ok
A8: Петров Семён Иванович | B8: город Свердловск | C8: транспортный-земельный-имущественный | D8: 1000785 | E8: 56 | F8: 2014 | G8: 785.58 | H8: 78.26 | I8: 2014 | J8: 6.8 | K8: 5 | L8: 2014 | M8: 1001711.64 | N8: 13208.5582 | O8: ok
A9: Сидоров Илья Романович | B9: город Фрунзе | C9: имущественный-земельный | G9: 48955.25 | H9: 4555.4 | I9: 2014 | J9: 489.5 | K9: 4269,14 | L9: 2013 | M9: 54000.15 | N9: 1820.0045 | O9: ok
M68: =IF(C68="транспортный",SUM(D68:E68),IF(C68="земельный",SUM(G68:H68),IF(C68="имущественный",SUM(J68:K68),IF(C68="транспортный-земельный",SUM(D68:E68)+SUM(G68:H68),IF(C68="транспортный-имущественный",SUM(D68:E68)+SUM(J68:K68),IF(C68="имущественный-земельный",SUM(J68:K68)+SUM(G68:H68),IF(C68="транспортный-земельный-имущественный",SUM(D68:E68)+SUM(J68:K68)+SUM(G68:H68),""))))))) ->  | N68: =IF(M68="","",IF(M68<=20000,(IF((M68*0.04)<400,400,M68*0.04)),IF(AND(M68>=20001,M68<=100000),800+((M68-20000)*0.03),IF(AND(M68>=100001,M68<=200000),3200+((M68-100000)*0.02),IF(AND(M68>=200001,M68<=1000000),5200+((M68-200000)*0.01),IF(M68>=1000000,13200+((M68-1000000)*0.005),"ошибка")))))) ->  | O68: =IF(AND(C68="транспортный",SUM(D68:E68)>0,SUM(G68:K68)<=0),"ok",IF(AND(C68="земельный",SUM(G68:H68)>0,SUM(D68:E68)<=0,SUM(J68:K68)<=0),"ok",IF(AND(C68="имущественный",SUM(J68:K68)>0,SUM(D68:H68)<=0),"ok",IF(AND(C68="транспортный-земельный",SUM(D68:H68)>0,SUM(J68:K68)<=0),"ok",IF(AND(C68="транспортный-имущественный",SUM(D68:E68),SUM(J68:K68)>0,SUM(G68:H68)<=0),"ok",IF(AND(C68="имущественный-земельный",SUM(G68:K68)>0,SUM(D68:E68)<=0),"ok",IF(AND(C68="транспортный-земельный-имущественный",SUM(D68:K68)>0),"ok",IF(C68="","","ошибка")))))))) -> 

Sheet расчет
A1: {ФИО полностью в род падеже} | B1: {Адрес проживания} | C1: {Вид налога} | D1: {транспортный налог руб} | E1: {транспортный налог коп} | F1: {транспортный пеня руб} | G1: {транспортный пеня коп} | H1: {Период взыскания транспортного налога} | I1: {земельный налог руб} | J1: {земельный налог коп} | K1: {земельный пеня руб} | L1: {земельный пеня коп} | M1: {Период взыскания земельного налога} | N1: {имущественный налог руб} | O1: {имущественный налог коп} | P1: {имущественный пеня руб} | Q1: {имущественный пеня коп} | R1: {Период взыскания имущественного налога} | S1: {Итоговая залолженность руб} | T1: {Итоговая залолженность коп.} | U1: {Размер госпошлины рублей} | V1: {Размер госпошлины копеек} | W1: {Дата полностью} | X1: проверка
A2: =IF(Лист1!A3="","",Лист1!A3) -> Никитина Романа Викторовича | B2: =IF(Лист1!B3="","",Лист1!B3) -> город Южно-Сахалинск, ул. Ленина, 44,32 | C2: =IF(Лист1!C3="","",Лист1!C3) -> транспортный | D2: =IF(Лист1!D3>0,INT(Лист1!D3),"") -> 10 | E2: =IF(D2<>"",(Лист1!D3-D2)*100,"") -> 99 | F2: =IF(Лист1!E3>0,INT(Лист1!E3),"") -> 7 | G2: =IF(F2<>"",(Лист1!E3-F2)*100,"") -> 1 | H2: =IF(Лист1!F3="","",Лист1!F3) -> 2014 | I2: =IF(Лист1!G3>0,INT(Лист1!G3),"") ->  | J2: =IF(I2<>"",(Лист1!G3-I2)*100,"") ->  | K2: =IF(Лист1!H3>0,INT(Лист1!H3),"") ->  | L2: =IF(K2<>"",(Лист1!H3-K2)*100,"") ->  | M2: =IF(Лист1!I3="","",Лист1!I3) ->  | N2: =IF(Лист1!J3>0,INT(Лист1!J3),"") ->  | O2: =IF(N2<>"",(Лист1!J3-N2)*100,"") ->  | P2: =IF(Лист1!K3>0,INT(Лист1!K3),"") ->  | Q2: =IF(P2<>"",(Лист1!K3-P2)*100,"") ->  | R2: =IF(Лист1!L3="","",Лист1!L3) ->  | S2: =IF(Лист1!M3="","",INT(Лист1!M3)) -> 18 | T2: =IF(S2<>"",(Лист1!M3-S2)*100,"") -> 0 | U2: 779 | V2: 11 | W2: 2014-12-13 | X2: =IF(AND(расчет!C2="транспортный",SUM(I2:Q2)=0,SUM(F2:G2)>0),"верно",IF(AND(расчет!C2="имущественный",SUM(F2:L2)=0,SUM(N2:Q2)>0),"верно",IF(AND(расчет!C2="земельный",SUM(N2:Q2)+SUM(F2:G2)=0,SUM(I2:L2)>0),"верно",IF(AND(расчет!C2="имущественный-земельный",SUM(F2:G2)=0,SUM(I2:Q2)>0),"верно",IF(AND(расчет!C2="транспортный-земельный",SUM(N2:Q2)=0,SUM(F2:L2)>0),"верно",IF(AND(расчет!C2="транспортный-имущественный",SUM(I2:L2)=0,(SUM(F2:G2)+SUM(N2:Q2))>0),"верно",IF(AND(расчет!C2="транспортный-земельный-имущественный",SUM(N2:Q2)>0),"верно",IF(AND(расчет!C2="",SUM(N2:Q2)=0),"","ОШИБКА!")))))))) -> верно
A3: =IF(Лист1!A4="","",Лист1!A4) -> Сидорова Ивана Васильевича | B3: =IF(Лист1!B4="","",Лист1!B4) -> город Южно-Сахалинск, ул. Ленина, 44,33 | C3: =IF(Лист1!C4="","",Лист1!C4) -> земельный | D3: =IF(Лист1!D4>0,INT(Лист1!D4),"") ->  | E3: =IF(D3<>"",(Лист1!D4-D3)*100,"") ->  | F3: =IF(Лист1!E4>0,INT(Лист1!E4),"") ->  | G3: =IF(F3<>"",(Лист1!E4-F3)*100,"") ->  | H3: =IF(Лист1!F4="","",Лист1!F4) ->  | I3: =IF(Лист1!G4>0,INT(Лист1!G4),"") -> 234 | J3: =IF(I3<>"",(Лист1!G4-I3)*100,"") -> 56 | K3: =IF(Лист1!H4>0,INT(Лист1!H4),"") -> 12 | L3: =IF(K3<>"",(Лист1!H4-K3)*100,"") -> 86 | M3: =IF(Лист1!I4="","",Лист1!I4) -> 2010 | N3: =IF(Лист1!J4>0,INT(Лист1!J4),"") ->  | O3: =IF(N3<>"",(Лист1!J4-N3)*100,"") ->  | P3: =IF(Лист1!K4>0,INT(Лист1!K4),"") ->  | Q3: =IF(P3<>"",(Лист1!K4-P3)*100,"") ->  | R3: =IF(Лист1!L4="","",Лист1!L4) ->  | S3: =IF(Лист1!M4="","",INT(Лист1!M4)) -> 247 | T3: =IF(S3<>"",(Лист1!M4-S3)*100,"") -> 42 | U3: 781 | V3: 0 | W3: 2014-12-13 | X3: =IF(AND(расчет!C3="транспортный",SUM(I3:Q3)=0,SUM(F3:G3)>0),"верно",IF(AND(расчет!C3="имущественный",SUM(F3:L3)=0,SUM(N3:Q3)>0),"верно",IF(AND(расчет!C3="земельный",SUM(N3:Q3)+SUM(F3:G3)=0,SUM(I3:L3)>0),"верно",IF(AND(расчет!C3="имущественный-земельный",SUM(F3:G3)=0,SUM(I3:Q3)>0),"верно",IF(AND(расчет!C3="транспортный-земельный",SUM(N3:Q3)=0,SUM(F3:L3)>0),"верно",IF(AND(расчет!C3="транспортный-имущественный",SUM(I3:L3)=0,(SUM(F3:G3)+SUM(N3:Q3))>0),"верно",IF(AND(расчет!C3="транспортный-земельный-имущественный",SUM(N3:Q3)>0),"верно",IF(AND(расчет!C3="",SUM(N3:Q3)=0),"","ОШИБКА!")))))))) -> верно
A4: =IF(Лист1!A5="","",Лист1!A5) -> Петренко Ивана Васильевича | B4: =IF(Лист1!B5="","",Лист1!B5) -> город Корсаков, ул. Советская, 33,45 | C4: =IF(Лист1!C5="","",Лист1!C5) -> имущественный | D4: =IF(Лист1!D5>0,INT(Лист1!D5),"") ->  | E4: =IF(D4<>"",(Лист1!D5-D4)*100,"") ->  | F4: =IF(Лист1!E5>0,INT(Лист1!E5),"") ->  | G4: =IF(F4<>"",(Лист1!E5-F4)*100,"") ->  | H4: =IF(Лист1!F5="","",Лист1!F5) ->  | I4: =IF(Лист1!G5>0,INT(Лист1!G5),"") ->  | J4: =IF(I4<>"",(Лист1!G5-I4)*100,"") ->  | K4: =IF(Лист1!H5>0,INT(Лист1!H5),"") ->  | L4: =IF(K4<>"",(Лист1!H5-K4)*100,"") ->  | M4: =IF(Лист1!I5="","",Лист1!I5) ->  | N4: =IF(Лист1!J5>0,INT(Лист1!J5),"") -> 4558 | O4: =IF(N4<>"",(Лист1!J5-N4)*100,"") -> 30 | P4: =IF(Лист1!K5>0,INT(Лист1!K5),"") -> 425 | Q4: =IF(P4<>"",(Лист1!K5-P4)*100,"") -> 50 | R4: =IF(Лист1!L5="","",Лист1!L5) -> 2014 | S4: =IF(Лист1!M5="","",INT(Лист1!M5)) -> 4558 | T4: =IF(S4<>"",(Лист1!M5-S4)*100,"") -> 30 | U4: 781 | V4: 12 | W4: 2014-12-13 | X4: =IF(AND(расчет!C4="транспортный",SUM(I4:Q4)=0,SUM(F4:G4)>0),"верно",IF(AND(расчет!C4="имущественный",SUM(F4:L4)=0,SUM(N4:Q4)>0),"верно",IF(AND(расчет!C4="земельный",SUM(N4:Q4)+SUM(F4:G4)=0,SUM(I4:L4)>0),"верно",IF(AND(расчет!C4="имущественный-земельный",SUM(F4:G4)=0,SUM(I4:Q4)>0),"верно",IF(AND(расчет!C4="транспортный-земельный",SUM(N4:Q4)=0,SUM(F4:L4)>0),"верно",IF(AND(расчет!C4="транспортный-имущественный",SUM(I4:L4)=0,(SUM(F4:G4)+SUM(N4:Q4))>0),"верно",IF(AND(расчет!C4="транспортный-земельный-имущественный",SUM(N4:Q4)>0),"верно",IF(AND(расчет!C4="",SUM(N4:Q4)=0),"","ОШИБКА!")))))))) -> верно
A5: =IF(Лист1!A6="","",Лист1!A6) -> Иванова Михаила Юрьевича | B5: =IF(Лист1!B6="","",Лист1!B6) -> город Фрунзе | C5: =IF(Лист1!C6="","",Лист1!C6) -> транспортный-земельный | D5: =IF(Лист1!D6>0,INT(Лист1!D6),"") -> 21000 | E5: =IF(D5<>"",(Лист1!D6-D5)*100,"") -> 55 | F5: =IF(Лист1!E6>0,INT(Лист1!E6),"") -> 67 | G5: =IF(F5<>"",(Лист1!E6-F5)*100,"") -> 0 | H5: =IF(Лист1!F6="","",Лист1!F6) -> 2014 | I5: =IF(Лист1!G6>0,INT(Лист1!G6),"") -> 67 | J5: =IF(I5<>"",(Лист1!G6-I5)*100,"") -> 1 | K5: =IF(Лист1!H6>0,INT(Лист1!H6),"") -> 54 | L5: =IF(K5<>"",(Лист1!H6-K5)*100,"") -> 60 | M5: =IF(Лист1!I6="","",Лист1!I6) -> 2013 | N5: =IF(Лист1!J6>0,INT(Лист1!J6),"") ->  | O5: =IF(N5<>"",(Лист1!J6-N5)*100,"") ->  | P5: =IF(Лист1!K6>0,INT(Лист1!K6),"") ->  | Q5: =IF(P5<>"",(Лист1!K6-P5)*100,"") ->  | R5: =IF(Лист1!L6="","",Лист1!L6) ->  | S5: =IF(Лист1!M6="","",INT(Лист1!M6)) -> 21189 | T5: =IF(S5<>"",(Лист1!M6-S5)*100,"") -> 16 | U5: 781 | V5: 10 | W5: 2014-12-13 | X5: =IF(AND(расчет!C5="транспортный",SUM(I5:Q5)=0,SUM(F5:G5)>0),"верно",IF(AND(расчет!C5="имущественный",SUM(F5:L5)=0,SUM(N5:Q5)>0),"верно",IF(AND(расчет!C5="земельный",SUM(N5:Q5)+SUM(F5:G5)=0,SUM(I5:L5)>0),"верно",IF(AND(расчет!C5="имущественный-земельный",SUM(F5:G5)=0,SUM(I5:Q5)>0),"верно",IF(AND(расчет!C5="транспортный-земельный",SUM(N5:Q5)=0,SUM(F5:L5)>0),"верно",IF(AND(расчет!C5="транспортный-имущественный",SUM(I5:L5)=0,(SUM(F5:G5)+SUM(N5:Q5))>0),"верно",IF(AND(расчет!C5="транспортный-земельный-имущественный",SUM(N5:Q5)>0),"верно",IF(AND(расчет!C5="",SUM(N5:Q5)=0),"","ОШИБКА!")))))))) -> верно
A6: =IF(Лист1!A7="","",Лист1!A7) -> Носкова Романа Романовича | B6: =IF(Лист1!B7="","",Лист1!B7) -> город Фрунзе | C6: =IF(Лист1!C7="","",Лист1!C7) -> транспортный-имущественный | D6: =IF(Лист1!D7>0,INT(Лист1!D7),"") -> 23154 | E6: =IF(D6<>"",(Лист1!D7-D6)*100,"") -> 99 | F6: =IF(Лист1!E7>0,INT(Лист1!E7),"") -> 5 | G6: =IF(F6<>"",(Лист1!E7-F6)*100,"") -> 25 | H6: =IF(Лист1!F7="","",Лист1!F7) -> 2010 | I6: =IF(Лист1!G7>0,INT(Лист1!G7),"") ->  | J6: =IF(I6<>"",(Лист1!G7-I6)*100,"") ->  | K6: =IF(Лист1!H7>0,INT(Лист1!H7),"") ->  | L6: =IF(K6<>"",(Лист1!H7-K6)*100,"") ->  | M6: =IF(Лист1!I7="","",Лист1!I7) ->  | N6: =IF(Лист1!J7>0,INT(Лист1!J7),"") -> 56 | O6: =IF(N6<>"",(Лист1!J7-N6)*100,"") -> 79 | P6: =IF(Лист1!K7>0,INT(Лист1!K7),"") -> 65 | Q6: =IF(P6<>"",(Лист1!K7-P6)*100,"") -> 58 | R6: =IF(Лист1!L7="","",Лист1!L7) -> 2014 | S6: =IF(Лист1!M7="","",INT(Лист1!M7)) -> 23217 | T6: =IF(S6<>"",(Лист1!M7-S6)*100,"") -> 3 | U6: 781 | V6: 15 | W6: 2014-12-13 | X6: =IF(AND(расчет!C6="транспортный",SUM(I6:Q6)=0,SUM(F6:G6)>0),"верно",IF(AND(расчет!C6="имущественный",SUM(F6:L6)=0,SUM(N6:Q6)>0),"верно",IF(AND(расчет!C6="земельный",SUM(N6:Q6)+SUM(F6:G6)=0,SUM(I6:L6)>0),"верно",IF(AND(расчет!C6="имущественный-земельный",SUM(F6:G6)=0,SUM(I6:Q6)>0),"верно",IF(AND(расчет!C6="транспортный-земельный",SUM(N6:Q6)=0,SUM(F6:L6)>0),"верно",IF(AND(расчет!C6="транспортный-имущественный",SUM(I6:L6)=0,(SUM(F6:G6)+SUM(N6:Q6))>0),"верно",IF(AND(расчет!C6="транспортный-земельный-имущественный",SUM(N6:Q6)>0),"верно",IF(AND(расчет!C6="",SUM(N6:Q6)=0),"","ОШИБКА!")))))))) -> верно
A7: =IF(Лист1!A8="","",Лист1!A8) -> Петров Семён Иванович | B7: =IF(Лист1!B8="","",Лист1!B8) -> город Свердловск | C7: =IF(Лист1!C8="","",Лист1!C8) -> транспортный-земельный-имущественный | D7: =IF(Лист1!D8>0,INT(Лист1!D8),"") -> 1000785 | E7: =IF(D7<>"",(Лист1!D8-D7)*100,"") -> 0 | F7: =IF(Лист1!E8>0,INT(Лист1!E8),"") -> 56 | G7: =IF(F7<>"",(Лист1!E8-F7)*100,"") -> 0 | H7: =IF(Лист1!F8="","",Лист1!F8) -> 2014 | I7: =IF(Лист1!G8>0,INT(Лист1!G8),"") -> 785 | J7: =IF(I7<>"",(Лист1!G8-I7)*100,"") -> 58 | K7: =IF(Лист1!H8>0,INT(Лист1!H8),"") -> 78 | L7: =IF(K7<>"",(Лист1!H8-K7)*100,"") -> 26 | M7: =IF(Лист1!I8="","",Лист1!I8) -> 2014 | N7: =IF(Лист1!J8>0,INT(Лист1!J8),"") -> 6 | O7: =IF(N7<>"",(Лист1!J8-N7)*100,"") -> 80 | P7: =IF(Лист1!K8>0,INT(Лист1!K8),"") -> 5 | Q7: =IF(P7<>"",(Лист1!K8-P7)*100,"") -> 0 | R7: =IF(Лист1!L8="","",Лист1!L8) -> 2014 | S7: =IF(Лист1!M8="","",INT(Лист1!M8)) -> 1001711 | T7: =IF(S7<>"",(Лист1!M8-S7)*100,"") -> 64 | U7: 43 | V7: 43 | W7: 2014-12-14 | X7: =IF(AND(расчет!C7="транспортный",SUM(I7:Q7)=0,SUM(F7:G7)>0),"верно",IF(AND(расчет!C7="имущественный",SUM(F7:L7)=0,SUM(N7:Q7)>0),"верно",IF(AND(расчет!C7="земельный",SUM(N7:Q7)+SUM(F7:G7)=0,SUM(I7:L7)>0),"верно",IF(AND(расчет!C7="имущественный-земельный",SUM(F7:G7)=0,SUM(I7:Q7)>0),"верно",IF(AND(расчет!C7="транспортный-земельный",SUM(N7:Q7)=0,SUM(F7:L7)>0),"верно",IF(AND(расчет!C7="транспортный-имущественный",SUM(I7:L7)=0,(SUM(F7:G7)+SUM(N7:Q7))>0),"верно",IF(AND(расчет!C7="транспортный-земельный-имущественный",SUM(N7:Q7)>0),"верно",IF(AND(расчет!C7="",SUM(N7:Q7)=0),"","ОШИБКА!")))))))) -> верно
A8: =IF(Лист1!A9="","",Лист1!A9) -> Сидоров Илья Романович | B8: =IF(Лист1!B9="","",Лист1!B9) -> город Фрунзе | C8: =IF(Лист1!C9="","",Лист1!C9) -> имущественный-земельный | D8: =IF(Лист1!D9>0,INT(Лист1!D9),"") ->  | E8: =IF(D8<>"",(Лист1!D9-D8)*100,"") ->  | F8: =IF(Лист1!E9>0,INT(Лист1!E9),"") ->  | G8: =IF(F8<>"",(Лист1!E9-F8)*100,"") ->  | H8: =IF(Лист1!F9="","",Лист1!F9) ->  | I8: =IF(Лист1!G9>0,INT(Лист1!G9),"") -> 48955 | J8: =IF(I8<>"",(Лист1!G9-I8)*100,"") -> 25 | K8: =IF(Лист1!H9>0,INT(Лист1!H9),"") -> 4555 | L8: =IF(K8<>"",(Лист1!H9-K8)*100,"") -> 40 | M8: =IF(Лист1!I9="","",Лист1!I9) -> 2014 | N8: =IF(Лист1!J9>0,INT(Лист1!J9),"") -> 489 | O8: =IF(N8<>"",(Лист1!J9-N8)*100,"") -> 50 | P8: =IF(Лист1!K9>0,INT(Лист1!K9),"") -> 4269 | Q8: =IF(P8<>"",(Лист1!K9-P8)*100,"") -> 14 | R8: =IF(Лист1!L9="","",Лист1!L9) -> 2013 | S8: =IF(Лист1!M9="","",INT(Лист1!M9)) -> 54000 | T8: =IF(S8<>"",(Лист1!M9-S8)*100,"") -> 15 | U8: 43 | V8: 44 | W8: 2014-12-15 | X8: =IF(AND(расчет!C8="транспортный",SUM(I8:Q8)=0,SUM(F8:G8)>0),"верно",IF(AND(расчет!C8="имущественный",SUM(F8:L8)=0,SUM(N8:Q8)>0),"верно",IF(AND(расчет!C8="земельный",SUM(N8:Q8)+SUM(F8:G8)=0,SUM(I8:L8)>0),"верно",IF(AND(расчет!C8="имущественный-земельный",SUM(F8:G8)=0,SUM(I8:Q8)>0),"верно",IF(AND(расчет!C8="транспортный-земельный",SUM(N8:Q8)=0,SUM(F8:L8)>0),"верно",IF(AND(расчет!C8="транспортный-имущественный",SUM(I8:L8)=0,(SUM(F8:G8)+SUM(N8:Q8))>0),"верно",IF(AND(расчет!C8="транспортный-земельный-имущественный",SUM(N8:Q8)>0),"верно",IF(AND(расчет!C8="",SUM(N8:Q8)=0),"","ОШИБКА!")))))))) -> верно
A9: =IF(Лист1!A10="","",Лист1!A10) ->  | H9: =IF(Лист1!F10="","",Лист1!F10) ->  | M9: =IF(Лист1!I10="","",Лист1!I10) ->  | R9: =IF(Лист1!L10="","",Лист1!L10) -> 
A10: =IF(Лист1!A11="","",Лист1!A11) ->  | H10: =IF(Лист1!F11="","",Лист1!F11) ->  | M10: =IF(Лист1!I11="","",Лист1!I11) ->  | R10: =IF(Лист1!L11="","",Лист1!L11) -> 
A11: =IF(Лист1!A12="","",Лист1!A12) ->  | H11: =IF(Лист1!F12="","",Лист1!F12) ->  | M11: =IF(Лист1!I12="","",Лист1!I12) ->  | R11: =IF(Лист1!L12="","",Лист1!L12) -> 
A12: =IF(Лист1!A13="","",Лист1!A13) ->  | H12: =IF(Лист1!F13="","",Лист1!F13) ->  | M12: =IF(Лист1!I13="","",Лист1!I13) ->  | R12: =IF(Лист1!L13="","",Лист1!L13) -> 
A13: =IF(Лист1!A14="","",Лист1!A14) ->  | H13: =IF(Лист1!F14="","",Лист1!F14) ->  | M13: =IF(Лист1!I14="","",Лист1!I14) ->  | R13: =IF(Лист1!L14="","",Лист1!L14) -> 
A14: =IF(Лист1!A15="","",Лист1!A15) ->  | H14: =IF(Лист1!F15="","",Лист1!F15) ->  | M14: =IF(Лист1!I15="","",Лист1!I15) ->  | R14: =IF(Лист1!L15="","",Лист1!L15) -> 
A15: =IF(Лист1!A16="","",Лист1!A16) ->  | H15: =IF(Лист1!F16="","",Лист1!F16) ->  | M15: =IF(Лист1!I16="","",Лист1!I16) ->  | R15: =IF(Лист1!L16="","",Лист1!L16) -> 
A16: =IF(Лист1!A17="","",Лист1!A17) ->  | H16: =IF(Лист1!F17="","",Лист1!F17) ->  | M16: =IF(Лист1!I17="","",Лист1!I17) ->  | R16: =IF(Лист1!L17="","",Лист1!L17) -> 
A17: =IF(Лист1!A18="","",Лист1!A18) ->  | H17: =IF(Лист1!F18="","",Лист1!F18) ->  | M17: =IF(Лист1!I18="","",Лист1!I18) ->  | R17: =IF(Лист1!L18="","",Лист1!L18) -> 
A18: =IF(Лист1!A19="","",Лист1!A19) ->  | H18: =IF(Лист1!F19="","",Лист1!F19) ->  | M18: =IF(Лист1!I19="","",Лист1!I19) ->  | R18: =IF(Лист1!L19="","",Лист1!L19) -> 
A19: =IF(Лист1!A20="","",Лист1!A20) ->  | H19: =IF(Лист1!F20="","",Лист1!F20) ->  | M19: =IF(Лист1!I20="","",Лист1!I20) ->  | R19: =IF(Лист1!L20="","",Лист1!L20) -> 
A20: =IF(Лист1!A21="","",Лист1!A21) ->  | H20: =IF(Лист1!F21="","",Лист1!F21) ->  | M20: =IF(Лист1!I21="","",Лист1!I21) ->  | R20: =IF(Лист1!L21="","",Лист1!L21) -> 
H21: =IF(Лист1!F22="","",Лист1!F22) ->  | M21: =IF(Лист1!I22="","",Лист1!I22) ->  | R21: =IF(Лист1!L22="","",Лист1!L22) -> 
H22: =IF(Лист1!F23="","",Лист1!F23) ->  | M22: =IF(Лист1!I23="","",Лист1!I23) ->  | R22: =IF(Лист1!L23="","",Лист1!L23) -> 
H23: =IF(Лист1!F24="","",Лист1!F24) ->  | M23: =IF(Лист1!I24="","",Лист1!I24) ->  | R23: =IF(Лист1!L24="","",Лист1!L24) -> 
H24: =IF(Лист1!F25="","",Лист1!F25) ->  | M24: =IF(Лист1!I25="","",Лист1!I25) ->  | R24: =IF(Лист1!L25="","",Лист1!L25) -> 
H25: =IF(Лист1!F26="","",Лист1!F26) ->  | M25: =IF(Лист1!I26="","",Лист1!I26) ->  | R25: =IF(Лист1!L26="","",Лист1!L26) -> 
H26: =IF(Лист1!F27="","",Лист1!F27) ->  | M26: =IF(Лист1!I27="","",Лист1!I27) ->  | R26: =IF(Лист1!L27="","",Лист1!L27) -> 
H27: =IF(Лист1!F28="","",Лист1!F28) ->  | M27: =IF(Лист1!I28="","",Лист1!I28) ->  | R27: =IF(Лист1!L28="","",Лист1!L28) -> 
H28: =IF(Лист1!F29="","",Лист1!F29) ->  | M28: =IF(Лист1!I29="","",Лист1!I29) ->  | R28: =IF(Лист1!L29="","",Лист1!L29) -> 
H29: =IF(Лист1!F30="","",Лист1!F30) ->  | M29: =IF(Лист1!I30="","",Лист1!I30) ->  | R29: =IF(Лист1!L30="","",Лист1!L30) -> 
H30: =IF(Лист1!F31="","",Лист1!F31) ->  | M30: =IF(Лист1!I31="","",Лист1!I31) ->  | R30: =IF(Лист1!L31="","",Лист1!L31) -> 
H31: =IF(Лист1!F32="","",Лист1!F32) ->  | M31: =IF(Лист1!I32="","",Лист1!I32) ->  | R31: =IF(Лист1!L32="","",Лист1!L32) -> 
H32: =IF(Лист1!F33="","",Лист1!F33) ->  | M32: =IF(Лист1!I33="","",Лист1!I33) ->  | R32: =IF(Лист1!L33="","",Лист1!L33) -> 
H33: =IF(Лист1!F34="","",Лист1!F34) ->  | M33: =IF(Лист1!I34="","",Лист1!I34) ->  | R33: =IF(Лист1!L34="","",Лист1!L34) -> 
H34: =IF(Лист1!F35="","",Лист1!F35) ->  | M34: =IF(Лист1!I35="","",Лист1!I35) ->  | R34: =IF(Лист1!L35="","",Лист1!L35) -> 
H35: =IF(Лист1!F36="","",Лист1!F36) ->  | M35: =IF(Лист1!I36="","",Лист1!I36) ->  | R35: =IF(Лист1!L36="","",Лист1!L36) -> 
H36: =IF(Лист1!F37="","",Лист1!F37) ->  | M36: =IF(Лист1!I37="","",Лист1!I37) ->  | R36: =IF(Лист1!L37="","",Лист1!L37) -> 
H37: =IF(Лист1!F38="","",Лист1!F38) ->  | M37: =IF(Лист1!I38="","",Лист1!I38) ->  | R37: =IF(Лист1!L38="","",Лист1!L38) -> 
H38: =IF(Лист1!F39="","",Лист1!F39) ->  | M38: =IF(Лист1!I39="","",Лист1!I39) ->  | R38: =IF(Лист1!L39="","",Лист1!L39) -> 
H39: =IF(Лист1!F40="","",Лист1!F40) ->  | M39: =IF(Лист1!I40="","",Лист1!I40) ->  | R39: =IF(Лист1!L40="","",Лист1!L40) -> 
H40: =IF(Лист1!F41="","",Лист1!F41) ->  | M40: =IF(Лист1!I41="","",Лист1!I41) ->  | R40: =IF(Лист1!L41="","",Лист1!L41) -> 
H41: =IF(Лист1!F42="","",Лист1!F42) ->  | M41: =IF(Лист1!I42="","",Лист1!I42) ->  | R41: =IF(Лист1!L42="","",Лист1!L42) -> 
H42: =IF(Лист1!F43="","",Лист1!F43) ->  | M42: =IF(Лист1!I43="","",Лист1!I43) ->  | R42: =IF(Лист1!L43="","",Лист1!L43) -> 
H43: =IF(Лист1!F44="","",Лист1!F44) ->  | M43: =IF(Лист1!I44="","",Лист1!I44) ->  | R43: =IF(Лист1!L44="","",Лист1!L44) -> 
H44: =IF(Лист1!F45="","",Лист1!F45) ->  | M44: =IF(Лист1!I45="","",Лист1!I45) ->  | R44: =IF(Лист1!L45="","",Лист1!L45) -> 
H45: =IF(Лист1!F46="","",Лист1!F46) ->  | M45: =IF(Лист1!I46="","",Лист1!I46) ->  | R45: =IF(Лист1!L46="","",Лист1!L46) -> 
H46: =IF(Лист1!F47="","",Лист1!F47) ->  | M46: =IF(Лист1!I47="","",Лист1!I47) ->  | R46: =IF(Лист1!L47="","",Лист1!L47) -> 
H47: =IF(Лист1!F48="","",Лист1!F48) ->  | M47: =IF(Лист1!I48="","",Лист1!I48) ->  | R47: =IF(Лист1!L48="","",Лист1!L48) -> 
H48: =IF(Лист1!F49="","",Лист1!F49) ->  | M48: =IF(Лист1!I49="","",Лист1!I49) ->  | R48: =IF(Лист1!L49="","",Лист1!L49) -> 
H49: =IF(Лист1!F50="","",Лист1!F50) ->  | M49: =IF(Лист1!I50="","",Лист1!I50) ->  | R49: =IF(Лист1!L50="","",Лист1!L50) -> 
H50: =IF(Лист1!F51="","",Лист1!F51) ->  | M50: =IF(Лист1!I51="","",Лист1!I51) ->  | R50: =IF(Лист1!L51="","",Лист1!L51) -> 
H51: =IF(Лист1!F52="","",Лист1!F52) ->  | M51: =IF(Лист1!I52="","",Лист1!I52) ->  | R51: =IF(Лист1!L52="","",Лист1!L52) -> 
H52: =IF(Лист1!F53="","",Лист1!F53) ->  | M52: =IF(Лист1!I53="","",Лист1!I53) ->  | R52: =IF(Лист1!L53="","",Лист1!L53) -> 
H53: =IF(Лист1!F54="","",Лист1!F54) ->  | M53: =IF(Лист1!I54="","",Лист1!I54) ->  | R53: =IF(Лист1!L54="","",Лист1!L54) -> 
H54: =IF(Лист1!F55="","",Лист1!F55) ->  | M54: =IF(Лист1!I55="","",Лист1!I55) ->  | R54: =IF(Лист1!L55="","",Лист1!L55) -> 
H55: =IF(Лист1!F56="","",Лист1!F56) ->  | M55: =IF(Лист1!I56="","",Лист1!I56) ->  | R55: =IF(Лист1!L56="","",Лист1!L56) -> 
H56: =IF(Лист1!F57="","",Лист1!F57) ->  | M56: =IF(Лист1!I57="","",Лист1!I57) ->  | R56: =IF(Лист1!L57="","",Лист1!L57) -> 
H57: =IF(Лист1!F58="","",Лист1!F58) ->  | M57: =IF(Лист1!I58="","",Лист1!I58) ->  | R57: =IF(Лист1!L58="","",Лист1!L58) -> 
H58: =IF(Лист1!F59="","",Лист1!F59) ->  | M58: =IF(Лист1!I59="","",Лист1!I59) ->  | R58: =IF(Лист1!L59="","",Лист1!L59) -> 
H59: =IF(Лист1!F60="","",Лист1!F60) ->  | M59: =IF(Лист1!I60="","",Лист1!I60) ->  | R59: =IF(Лист1!L60="","",Лист1!L60) -> 
H60: =IF(Лист1!F61="","",Лист1!F61) ->  | M60: =IF(Лист1!I61="","",Лист1!I61) ->  | R60: =IF(Лист1!L61="","",Лист1!L61) -> 
H61: =IF(Лист1!F62="","",Лист1!F62) ->  | M61: =IF(Лист1!I62="","",Лист1!I62) ->  | R61: =IF(Лист1!L62="","",Лист1!L62) -> 
H62: =IF(Лист1!F63="","",Лист1!F63) ->  | M62: =IF(Лист1!I63="","",Лист1!I63) ->  | R62: =IF(Лист1!L63="","",Лист1!L63) -> 
H63: =IF(Лист1!F64="","",Лист1!F64) ->  | M63: =IF(Лист1!I64="","",Лист1!I64) ->  | R63: =IF(Лист1!L64="","",Лист1!L64) -> 
H64: =IF(Лист1!F65="","",Лист1!F65) ->  | M64: =IF(Лист1!I65="","",Лист1!I65) ->  | R64: =IF(Лист1!L65="","",Лист1!L65) -> 
H65: =IF(Лист1!F66="","",Лист1!F66) ->  | M65: =IF(Лист1!I66="","",Лист1!I66) ->  | R65: =IF(Лист1!L66="","",Лист1!L66) -> 
H66: =IF(Лист1!F67="","",Лист1!F67) ->  | M66: =IF(Лист1!I67="","",Лист1!I67) ->  | R66: =IF(Лист1!L67="","",Лист1!L67) -> 
H67: =IF(Лист1!F68="","",Лист1!F68) ->  | M67: =IF(Лист1!I68="","",Лист1!I68) ->  | R67: =IF(Лист1!L68="","",Лист1!L68) -> 
H68: =IF(Лист1!F69="","",Лист1!F69) ->  | M68: =IF(Лист1!I69="","",Лист1!I69) ->  | R68: =IF(Лист1!L69="","",Лист1!L69) -> 
H69: =IF(Лист1!F70="","",Лист1!F70) ->  | M69: =IF(Лист1!I70="","",Лист1!I70) ->  | R69: =IF(Лист1!L70="","",Лист1!L70) -> 
H70: =IF(Лист1!F71="","",Лист1!F71) ->  | M70: =IF(Лист1!I71="","",Лист1!I71) ->  | R70: =IF(Лист1!L71="","",Лист1!L71) -> 
H71: =IF(Лист1!F72="","",Лист1!F72) ->  | M71: =IF(Лист1!I72="","",Лист1!I72) ->  | R71: =IF(Лист1!L72="","",Лист1!L72) -> 
H72: =IF(Лист1!F73="","",Лист1!F73) ->  | M72: =IF(Лист1!I73="","",Лист1!I73) ->  | R72: =IF(Лист1!L73="","",Лист1!L73) -> 
H73: =IF(Лист1!F74="","",Лист1!F74) ->  | M73: =IF(Лист1!I74="","",Лист1!I74) ->  | R73: =IF(Лист1!L74="","",Лист1!L74) -> 
H74: =IF(Лист1!F75="","",Лист1!F75) ->  | M74: =IF(Лист1!I75="","",Лист1!I75) ->  | R74: =IF(Лист1!L75="","",Лист1!L75) -> 
H75: =IF(Лист1!F76="","",Лист1!F76) ->  | M75: =IF(Лист1!I76="","",Лист1!I76) ->  | R75: =IF(Лист1!L76="","",Лист1!L76) -> 
H76: =IF(Лист1!F77="","",Лист1!F77) ->  | M76: =IF(Лист1!I77="","",Лист1!I77) ->  | R76: =IF(Лист1!L77="","",Лист1!L77) -> 
H77: =IF(Лист1!F78="","",Лист1!F78) ->  | M77: =IF(Лист1!I78="","",Лист1!I78) ->  | R77: =IF(Лист1!L78="","",Лист1!L78) -> 
H78: =IF(Лист1!F79="","",Лист1!F79) ->  | M78: =IF(Лист1!I79="","",Лист1!I79) ->  | R78: =IF(Лист1!L79="","",Лист1!L79) -> 
H79: =IF(Лист1!F80="","",Лист1!F80) ->  | M79: =IF(Лист1!I80="","",Лист1!I80) ->  | R79: =IF(Лист1!L80="","",Лист1!L80) -> 
H80: =IF(Лист1!F81="","",Лист1!F81) ->  | M80: =IF(Лист1!I81="","",Лист1!I81) ->  | R80: =IF(Лист1!L81="","",Лист1!L81) -> 
H81: =IF(Лист1!F82="","",Лист1!F82) ->  | M81: =IF(Лист1!I82="","",Лист1!I82) ->  | R81: =IF(Лист1!L82="","",Лист1!L82) -> 
H82: =IF(Лист1!F83="","",Лист1!F83) ->  | M82: =IF(Лист1!I83="","",Лист1!I83) ->  | R82: =IF(Лист1!L83="","",Лист1!L83) -> 
H83: =IF(Лист1!F84="","",Лист1!F84) ->  | M83: =IF(Лист1!I84="","",Лист1!I84) ->  | R83: =IF(Лист1!L84="","",Лист1!L84) -> 
H84: =IF(Лист1!F85="","",Лист1!F85) ->  | M84: =IF(Лист1!I85="","",Лист1!I85) ->  | R84: =IF(Лист1!L85="","",Лист1!L85) -> 
H85: =IF(Лист1!F86="","",Лист1!F86) ->  | M85: =IF(Лист1!I86="","",Лист1!I86) ->  | R85: =IF(Лист1!L86="","",Лист1!L86) -> 
H86: =IF(Лист1!F87="","",Лист1!F87) ->  | M86: =IF(Лист1!I87="","",Лист1!I87) ->  | R86: =IF(Лист1!L87="","",Лист1!L87) -> 
H87: =IF(Лист1!F88="","",Лист1!F88) ->  | M87: =IF(Лист1!I88="","",Лист1!I88) ->  | R87: =IF(Лист1!L88="","",Лист1!L88) -> 
H88: =IF(Лист1!F89="","",Лист1!F89) ->  | M88: =IF(Лист1!I89="","",Лист1!I89) ->  | R88: =IF(Лист1!L89="","",Лист1!L89) -> 
H89: =IF(Лист1!F90="","",Лист1!F90) ->  | M89: =IF(Лист1!I90="","",Лист1!I90) ->  | R89: =IF(Лист1!L90="","",Лист1!L90) -> 
H90: =IF(Лист1!F91="","",Лист1!F91) ->  | M90: =IF(Лист1!I91="","",Лист1!I91) ->  | R90: =IF(Лист1!L91="","",Лист1!L91) -> 
H91: =IF(Лист1!F92="","",Лист1!F92) ->  | M91: =IF(Лист1!I92="","",Лист1!I92) ->  | R91: =IF(Лист1!L92="","",Лист1!L92) -> 
H92: =IF(Лист1!F93="","",Лист1!F93) ->  | M92: =IF(Лист1!I93="","",Лист1!I93) ->  | R92: =IF(Лист1!L93="","",Лист1!L93) -> 
H93: =IF(Лист1!F94="","",Лист1!F94) ->  | M93: =IF(Лист1!I94="","",Лист1!I94) ->  | R93: =IF(Лист1!L94="","",Лист1!L94) -> 
H94: =IF(Лист1!F95="","",Лист1!F95) ->  | M94: =IF(Лист1!I95="","",Лист1!I95) ->  | R94: =IF(Лист1!L95="","",Лист1!L95) -> 
H95: =IF(Лист1!F96="","",Лист1!F96) ->  | M95: =IF(Лист1!I96="","",Лист1!I96) ->  | R95: =IF(Лист1!L96="","",Лист1!L96) -> 
H96: =IF(Лист1!F97="","",Лист1!F97) ->  | M96: =IF(Лист1!I97="","",Лист1!I97) ->  | R96: =IF(Лист1!L97="","",Лист1!L97) -> 
H97: =IF(Лист1!F98="","",Лист1!F98) ->  | M97: =IF(Лист1!I98="","",Лист1!I98) ->  | R97: =IF(Лист1!L98="","",Лист1!L98) -> 
H98: =IF(Лист1!F99="","",Лист1!F99) ->  | M98: =IF(Лист1!I99="","",Лист1!I99) ->  | R98: =IF(Лист1!L99="","",Лист1!L99) -> 
H99: =IF(Лист1!F100="","",Лист1!F100) ->  | M99: =IF(Лист1!I100="","",Лист1!I100) ->  | R99: =IF(Лист1!L100="","",Лист1!L100) -> 
H100: =IF(Лист1!F101="","",Лист1!F101) ->  | M100: =IF(Лист1!I101="","",Лист1!I101) ->  | R100: =IF(Лист1!L101="","",Лист1!L101) -> 
H101: =IF(Лист1!F102="","",Лист1!F102) ->  | M101: =IF(Лист1!I102="","",Лист1!I102) ->  | R101: =IF(Лист1!L102="","",Лист1!L102) -> 
H102: =IF(Лист1!F103="","",Лист1!F103) ->  | M102: =IF(Лист1!I103="","",Лист1!I103) ->  | R102: =IF(Лист1!L103="","",Лист1!L103) -> 
H103: =IF(Лист1!F104="","",Лист1!F104) ->  | M103: =IF(Лист1!I104="","",Лист1!I104) ->  | R103: =IF(Лист1!L104="","",Лист1!L104) -> 
H104: =IF(Лист1!F105="","",Лист1!F105) ->  | M104: =IF(Лист1!I105="","",Лист1!I105) ->  | R104: =IF(Лист1!L105="","",Лист1!L105) -> 
H105: =IF(Лист1!F106="","",Лист1!F106) ->  | M105: =IF(Лист1!I106="","",Лист1!I106) ->  | R105: =IF(Лист1!L106="","",Лист1!L106) -> 
H106: =IF(Лист1!F107="","",Лист1!F107) ->  | M106: =IF(Лист1!I107="","",Лист1!I107) ->  | R106: =IF(Лист1!L107="","",Лист1!L107) -> 
H107: =IF(Лист1!F108="","",Лист1!F108) ->  | M107: =IF(Лист1!I108="","",Лист1!I108) ->  | R107: =IF(Лист1!L108="","",Лист1!L108) -> 
H108: =IF(Лист1!F109="","",Лист1!F109) ->  | M108: =IF(Лист1!I109="","",Лист1!I109) ->  | R108: =IF(Лист1!L109="","",Лист1!L109) -> 
H109: =IF(Лист1!F110="","",Лист1!F110) ->  | M109: =IF(Лист1!I110="","",Лист1!I110) ->  | R109: =IF(Лист1!L110="","",Лист1!L110) -> 
H110: =IF(Лист1!F111="","",Лист1!F111) ->  | M110: =IF(Лист1!I111="","",Лист1!I111) ->  | R110: =IF(Лист1!L111="","",Лист1!L111) -> 
H111: =IF(Лист1!F112="","",Лист1!F112) ->  | M111: =IF(Лист1!I112="","",Лист1!I112) ->  | R111: =IF(Лист1!L112="","",Лист1!L112) -> 
H112: =IF(Лист1!F113="","",Лист1!F113) ->  | M112: =IF(Лист1!I113="","",Лист1!I113) ->  | R112: =IF(Лист1!L113="","",Лист1!L113) -> 
H113: =IF(Лист1!F114="","",Лист1!F114) ->  | M113: =IF(Лист1!I114="","",Лист1!I114) ->  | R113: =IF(Лист1!L114="","",Лист1!L114) -> 
H114: =IF(Лист1!F115="","",Лист1!F115) ->  | M114: =IF(Лист1!I115="","",Лист1!I115) ->  | R114: =IF(Лист1!L115="","",Лист1!L115) -> 
H115: =IF(Лист1!F116="","",Лист1!F116) ->  | M115: =IF(Лист1!I116="","",Лист1!I116) ->  | R115: =IF(Лист1!L116="","",Лист1!L116) -> 
H116: =IF(Лист1!F117="","",Лист1!F117) ->  | M116: =IF(Лист1!I117="","",Лист1!I117) ->  | R116: =IF(Лист1!L117="","",Лист1!L117) -> 
H117: =IF(Лист1!F118="","",Лист1!F118) ->  | M117: =IF(Лист1!I118="","",Лист1!I118) ->  | R117: =IF(Лист1!L118="","",Лист1!L118) -> 
H118: =IF(Лист1!F119="","",Лист1!F119) ->  | M118: =IF(Лист1!I119="","",Лист1!I119) ->  | R118: =IF(Лист1!L119="","",Лист1!L119) -> 
H119: =IF(Лист1!F120="","",Лист1!F120) ->  | M119: =IF(Лист1!I120="","",Лист1!I120) ->  | R119: =IF(Лист1!L120="","",Лист1!L120) -> 
H120: =IF(Лист1!F121="","",Лист1!F121) ->  | M120: =IF(Лист1!I121="","",Лист1!I121) ->  | R120: =IF(Лист1!L121="","",Лист1!L121) -> 
H121: =IF(Лист1!F122="","",Лист1!F122) ->  | M121: =IF(Лист1!I122="","",Лист1!I122) ->  | R121: =IF(Лист1!L122="","",Лист1!L122) -> 
H122: =IF(Лист1!F123="","",Лист1!F123) ->  | M122: =IF(Лист1!I123="","",Лист1!I123) ->  | R122: =IF(Лист1!L123="","",Лист1!L123) -> 
H123: =IF(Лист1!F124="","",Лист1!F124) ->  | M123: =IF(Лист1!I124="","",Лист1!I124) ->  | R123: =IF(Лист1!L124="","",Лист1!L124) -> 
H124: =IF(Лист1!F125="","",Лист1!F125) ->  | M124: =IF(Лист1!I125="","",Лист1!I125) ->  | R124: =IF(Лист1!L125="","",Лист1!L125) -> 
H125: =IF(Лист1!F126="","",Лист1!F126) ->  | M125: =IF(Лист1!I126="","",Лист1!I126) ->  | R125: =IF(Лист1!L126="","",Лист1!L126) -> 
H126: =IF(Лист1!F127="","",Лист1!F127) ->  | M126: =IF(Лист1!I127="","",Лист1!I127) ->  | R126: =IF(Лист1!L127="","",Лист1!L127) -> 
H127: =IF(Лист1!F128="","",Лист1!F128) ->  | M127: =IF(Лист1!I128="","",Лист1!I128) ->  | R127: =IF(Лист1!L128="","",Лист1!L128) -> 
H128: =IF(Лист1!F129="","",Лист1!F129) ->  | M128: =IF(Лист1!I129="","",Лист1!I129) ->  | R128: =IF(Лист1!L129="","",Лист1!L129) -> 
H129: =IF(Лист1!F130="","",Лист1!F130) ->  | M129: =IF(Лист1!I130="","",Лист1!I130) ->  | R129: =IF(Лист1!L130="","",Лист1!L130) -> 
H130: =IF(Лист1!F131="","",Лист1!F131) ->  | M130: =IF(Лист1!I131="","",Лист1!I131) ->  | R130: =IF(Лист1!L131="","",Лист1!L131) -> 
H131: =IF(Лист1!F132="","",Лист1!F132) ->  | M131: =IF(Лист1!I132="","",Лист1!I132) ->  | R131: =IF(Лист1!L132="","",Лист1!L132) -> 

Sheet виды
A1: транспортный
A2: земельный
A3: имущественный
A4: имущественный-земельный
A5: транспортный-земельный
A6: транспортный-имущественный
A7: транспортный-земельный-имущественный
